fUST/lending_fUST_20250501
["ID","MTS","AMOUNT","RATE_DAILY","PERIOD"]
[359458008,1746034239229,-500.0,0.00040297,12]
[359458009,1746034239238,-500.0,0.00040297,12]
[359458010,1746034239247,-500.0,0.00040297,12]
[359458011,1746034239257,-500.0,0.00040297,12]
[359458012,1746034239266,-262.6719865,0.00040297,12]
[359458013,1746034239276,-151.0,0.00040298,14]
[359458014,1746034239285,-151.0,0.00040298,14]
[359458015,1746034239294,-151.0,0.00040298,14]
[359458016,1746034239304,-151.0,0.00040298,14]
[359458017,1746034239313,-151.0,0.00040298,14]
[359458018,1746034239323,-151.0,0.00040298,14]
[359458019,1746034239332,-155.654734,0.00040298,14]
[359458020,1746034239342,-151.0,0.00040298,14]
[359458021,1746034239351,-151.0,0.00040298,14]
[359458022,1746034239361,-151.0,0.00040298,14]
[359458023,1746034239370,-151.0,0.00040298,14]
[359458024,1746034239380,-151.0,0.00040298,14]
[359458025,1746034239390,-151.0,0.00040298,14]
[359458026,1746034239399,-151.0,0.00040298,14]
[359458027,1746034239409,-151.0,0.00040298,14]
[359458028,1746034239419,-151.0,0.00040298,14]
[359458029,1746034239429,-151.0,0.00040298,14]
[359458030,1746034239439,-151.0,0.00040298,14]
[359458031,1746034239448,-151.0,0.00040298,14]
[359458032,1746034239457,-152.286119,0.00040298,14]
[359458033,1746034239466,-151.0,0.00040298,14]
[359458034,1746034239475,-156.390972,0.00040298,14]
[359458035,1746034239485,-151.0,0.00040298,14]
[359458036,1746034239494,-151.0,0.00040298,14]
[359458037,1746034239504,-151.0,0.00040298,14]
[359458038,1746034239513,-151.0,0.00040298,14]
[359458039,1746034239523,-2311.06,0.00040298,12]
[359458040,1746034239532,-2311.06,0.00040298,12]
[359458041,1746034239541,-2311.06,0.00040298,12]
[359458042,1746034239551,-2311.06,0.00040298,12]
[359458043,1746034239560,-2311.06,0.00040298,12]
[359458044,1746034239573,-2311.06,0.00040298,12]
[359458045,1746034239582,-2311.06,0.00040298,12]
[359458046,1746034239592,-2311.06,0.00040298,12]
[359458047,1746034239601,-2311.06,0.00040298,12]
[359458048,1746034239611,-2311.06,0.00040298,12]
[359458049,1746034239620,-2311.06,0.00040298,12]
[359458050,1746034239629,-2311.06,0.00040298,12]
[359458051,1746034239638,-2311.06,0.00040298,12]
[359458052,1746034239648,-2311.06,0.00040298,12]
[359458053,1746034239657,-400.0,0.00040298,12]
[359458054,1746034239666,-469.53764402,0.00040298,31]
[359458055,1746034239674,-500.0,0.00040298,31]
[359458056,1746034239683,-281.93971914,0.00040298,7]
[359458057,1746034239693,-288.5902363,0.00040298,31]
[359458058,1746034239702,-624.58,0.00040299,2]
[359458059,1746034239712,-624.58,0.00040299,2]
[359458060,1746034239721,-624.58,0.00040299,2]
[359458061,1746034239730,-624.58,0.00040299,2]
[359458062,1746034239740,-624.58,0.00040299,2]
[359458063,1746034239749,-624.58,0.00040299,2]
[359458064,1746034239758,-624.58,0.00040299,2]
[359458065,1746034239766,-624.58,0.00040299,2]
[359458066,1746034239775,-624.58,0.00040299,2]
[359458067,1746034239785,-624.58,0.00040299,2]
[359458068,1746034239794,-166.299791,0.00040299,14]
[359458069,1746034239803,-151.0,0.00040299,2]
[359458070,1746034239812,-151.0,0.00040299,2]
[359458071,1746034239821,-151.0,0.00040299,2]
[359458072,1746034239830,-151.0,0.00040299,2]
[359458073,1746034239840,-151.0,0.00040299,2]
[359458074,1746034239849,-151.0,0.00040299,2]
[359458075,1746034239858,-151.0,0.00040299,2]
[359458076,1746034239866,-151.0,0.00040299,2]
[359458077,1746034239876,-151.0,0.00040299,14]
[359458078,1746034239886,-151.0,0.00040299,14]
[359458079,1746034239895,-151.0,0.00040299,14]
[359458080,1746034239905,-151.0,0.00040299,14]
[359458081,1746034239915,-151.0,0.00040299,14]
[359458082,1746034239925,-151.0,0.00040299,14]
[359458083,1746034239934,-151.0,0.00040299,14]
[359458084,1746034239943,-235.909514,0.00040299,14]
[359458085,1746034239953,-151.0,0.00040299,14]
[359458086,1746034239963,-151.000001,0.00040299,14]
[359458087,1746034239972,-500.0,0.00040299,5]
[359458088,1746034239982,-151.0,0.00040299,20]
[359458089,1746034239992,-151.0,0.00040299,20]
[359458090,1746034240001,-251.475657,0.00040299,20]
[359458091,1746034240011,-2311.06,0.00040299,12]
[359458092,1746034240020,-2311.06,0.00040299,12]
[359458093,1746034240031,-2311.06,0.00040299,12]
[359458094,1746034240041,-2311.06,0.00040299,12]
[359458095,1746034240051,-2311.06,0.00040299,12]
[359458096,1746034240067,-2311.13089606,0.00040299,12]
[359458097,1746034240077,-400.0,0.00040299,12]
[359458098,1746034240087,-400.0,0.00040299,12]
[359458099,1746034240096,-400.0,0.00040299,12]
[359458100,1746034240107,-400.0,0.00040299,12]
[359458101,1746034240116,-400.0,0.00040299,12]
[359458102,1746034240125,-545.79,0.00040299,12]
[359458103,1746034240135,-531.14568577,0.00040299,15]
[359458104,1746034240145,-151.0,0.00040299,20]
[359458105,1746034240154,-203.04410529,0.00040299,20]
[359458106,1746034240164,-151.0,0.00040299,20]
[359458107,1746034240173,-151.0,0.00040299,20]
[359458108,1746034240183,-151.0,0.00040299,2]
[359458109,1746034240192,-151.0,0.00040299,20]
[359458110,1746034240202,-212.61327652,0.00040299,31]
[359458111,1746034240212,-471.35882483,0.00040299,31]
[359458112,1746034240221,-407.4018619,0.00040299,7]
[359458113,1746034240231,-436.5037302,0.00040299,31]
[359458114,1746034240240,-411.4929043,0.00040299,31]
[359458115,1746034240250,-500.0,0.00040299,7]
[359458117,1746034240259,-500.0,0.00040299,31]
[359458118,1746034240269,-595.58783604,0.00040299,31]
[359458119,1746034240278,-157.85934466,0.00040299,7]
[359458120,1746034240288,-500.0,0.00040299,31]
[359458121,1746034240297,-500.0,0.00040299,31]
[359458122,1746034240306,-500.0,0.00040299,31]
[359458123,1746034240315,-340.04388469,0.00040299,31]
[359458124,1746034240325,-500.0,0.00040299,20]
[359458125,1746034240335,-205116.24083364,0.000403,2]
[359458126,1746034240344,-160.0,0.000403,3]
[359458127,1746034240353,-32408.27669977,0.000403,3]
[359458128,1746034240363,-6067496.40994482,0.000403,20]
[359458140,1746034244058,-500.0,0.0003652,60]
[359458141,1746034244068,-500.0,0.00037068,60]
[359458142,1746034244077,-508.34305416,0.000403,20]
[359458153,1746034246734,-79.74253485,0.00037616,60]
[359458154,1746034246810,-67.8664042,0.00037616,60]
[359458163,1746035229143,-501.216365,0.00027397,2]
[359458164,1746035229165,-153.0,0.00027397,3]
[359458165,1746035229188,-2896.27650988,0.00033162,2]
[359458166,1746035229210,-501.216365,0.00033165,2]
[359458167,1746035229232,-400.0,0.00038052,2]
[359458168,1746035229254,-384.71903645,0.00038053,2]
[359458169,1746035244095,-117.56839085,0.00038053,2]
[359458170,1746035244116,-964.90868094,0.000382,2]
[359458171,1746035244136,-162.57543534,0.00038356,2]
[359458172,1746035244162,-182.04053198,0.00038566,2]
[359458173,1746035244184,-840.90604152,0.00038571,2]
[359458174,1746035244206,-421.37435881,0.00038571,2]
[359458175,1746035244227,-578.67,0.000386,2]
[359458176,1746035244247,-415.35546443,0.00038679,2]
[359458177,1746035252092,-2820.40669455,0.00025,3]
[359458179,1746035348121,-1103.07210948,0.0002499,2]
[359458180,1746035348143,-115423.99313304,0.00025,3]
[359458181,1746035348167,-238.0,0.0003,2]
[359458182,1746035348190,-8624.17,0.000353,7]
[359458195,1746035407518,643.27245396,0.00031062,2]
[359458196,1746035407719,643.27245396,0.00036062,2]
[359458216,1746035431950,-520.8,0.000384,2]
[359458217,1746035431960,-400.0,0.00038679,12]
[359458226,1746035432121,-512.21421511,0.00038679,12]
[359458228,1746035432134,-2200.0,0.0003873,7]
[359458229,1746035432144,-501.216365,0.00038933,2]
[359458230,1746035432154,-1000.0,0.000395,2]
[359458232,1746035432164,-510.71377747,0.00039676,2]
[359458233,1746035432175,-2220.71597427,0.00039676,2]
[359458234,1746035432185,-200.0,0.00039676,120]
[359458235,1746035432194,-2500.0,0.000398,10]
[359458236,1746035432203,-3309.21632844,0.00039886,3]
[359458237,1746035432213,-354.9749397,0.00039894,12]
[359458238,1746035432225,-400.0,0.00039894,12]
[359458239,1746035432235,-500.0,0.00039895,12]
[359458240,1746035432245,-534.8,0.00039895,12]
[359458241,1746035432254,-400.0,0.00039895,12]
[359458242,1746035432264,-400.0,0.00039895,12]
[359458243,1746035432273,-400.0,0.00039895,12]
[359458244,1746035432283,-400.0,0.00039895,12]
[359458245,1746035432293,-400.0,0.00039895,12]
[359458246,1746035432303,-400.0,0.00039895,12]
[359458247,1746035432312,-400.0,0.00039895,12]
[359458248,1746035432322,-296.08663874,0.00039895,12]
[359458249,1746035432331,-400.0,0.00039895,12]
[359458250,1746035432341,-400.0,0.00039895,12]
[359458251,1746035432350,-400.0,0.00039895,12]
[359458252,1746035432359,-400.0,0.00039895,12]
[359458253,1746035432369,-413.24,0.00039895,12]
[359458254,1746035432382,-406.0205515,0.00039895,12]
[359458255,1746035432392,-400.0,0.00039895,12]
[359458256,1746035432402,-517.85,0.00039895,12]
[359458257,1746035432411,-624.58,0.00039895,2]
[359458258,1746035432421,-624.58,0.00039895,2]
[359458259,1746035432430,-624.58,0.00039895,2]
[359458260,1746035432439,-624.58,0.00039895,2]
[359458261,1746035432449,-624.58,0.00039895,2]
[359458262,1746035432458,-624.58,0.00039895,2]
[359458263,1746035432469,-624.58,0.00039895,2]
[359458264,1746035432478,-624.58,0.00039895,2]
[359458265,1746035432488,-624.58,0.00039895,2]
[359458266,1746035432497,-624.58,0.00039895,2]
[359458267,1746035432507,-259.49,0.00039895,12]
[359458268,1746035432517,-500.0,0.00039895,12]
[359458269,1746035432527,-521.48594538,0.00039895,12]
[359458270,1746035432540,-93.77405462,0.00039895,12]
[359458271,1746035432550,-400.0,0.00039895,12]
[359458272,1746035432559,-17.12594538,0.00039895,12]
[359458273,1746035432571,-382.87405462,0.00039895,12]
[359458274,1746035432580,-204.67341383,0.00039895,12]
[359458275,1746035432590,-52960.23464866,0.00039896,2]
[359458276,1746035432601,-5703.2746849,0.00039896,2]
[359458277,1746035432613,-855.24220754,0.00039896,2]
[359458278,1746035432625,-1035.5,0.00039896,2]
[359458306,1746035437807,-336.21982921,0.00039896,2]
[359458308,1746035438002,-409.26654487,0.00039896,2]
[359458309,1746035438015,-60937.8555562,0.00039896,2]
[359458310,1746035438025,-1558.23805295,0.00039898,2]
[359458311,1746035438034,-508.18235352,0.00039899,2]
[359458312,1746035438044,-7757.77,0.000399,7]
[359458313,1746035438054,-160.0,0.000399,7]
[359458314,1746035438063,-508.1823535,0.00039942,2]
[359458315,1746035438073,-1103.07210948,0.0003998,3]
[359458316,1746035438083,-508.1823535,0.00039985,2]
[359458317,1746035438093,-545.79,0.00039998,12]
[359458318,1746035438103,-500.0,0.00039999,12]
[359458319,1746035438113,-1925.88,0.00039999,12]
[359458320,1746035438126,-1925.88,0.00039999,12]
[359458321,1746035438136,-1925.88,0.00039999,12]
[359458322,1746035438147,-1925.88,0.00039999,12]
[359458323,1746035438158,-1172.777,0.0004,120]
[359458324,1746035438167,-1016.47428613,0.0004,2]
[359458325,1746035438177,-306.96518769,0.0004,2]
[359458326,1746035438187,-567.0839203,0.00040006,30]
[359458327,1746035438199,-690.66,0.00040026,120]
[359458328,1746035438208,-508.1823535,0.00040028,28]
[359458329,1746035438219,-508.1823535,0.00040072,28]
[359458330,1746035438229,-508.1823535,0.00040115,28]
[359458331,1746035438239,-508.1823535,0.00040158,28]
[359458332,1746035438249,-1103.07210948,0.00040161,3]
[359458333,1746035438259,-3900.35681623,0.00040171,2]
[359458334,1746035438272,-1099.64318377,0.00040171,2]
[359458335,1746035438282,-160.0,0.00040197,2]
[359458336,1746035438291,-2000.0,0.000402,26]
[359458337,1746035438301,-154.36259486,0.000402,2]
[359458338,1746035438310,-2500.0,0.000402,10]
[359458339,1746035438319,-154.36259486,0.00040201,2]
[359458340,1746035438328,-508.1823535,0.00040201,28]
[359458341,1746035438337,-154.36259486,0.00040201,2]
[359458342,1746035438347,-690.66,0.00040226,120]
[359458343,1746035438356,-1925.88,0.00040271,12]
[359458344,1746035438367,-500.0,0.00040273,5]
[359458345,1746035438376,-1103.07210948,0.00040289,3]
[359458346,1746035438386,-2206.14421896,0.0004029,3]
[359458347,1746035438395,-6618.43265688,0.0004029,3]
[359458348,1746035438405,-160.0,0.0004029,3]
[359458349,1746035438414,-1925.88,0.00040295,12]
[359458350,1746035438424,-1925.88,0.00040297,12]
[359458351,1746035438433,-1925.88,0.00040297,12]
[359458352,1746035438444,-1925.88,0.00040298,12]
[359458353,1746035438454,-281.93971914,0.00040299,7]
[359458354,1746035438464,-500.0,0.00040299,31]
[359458355,1746035438475,-469.53764402,0.00040299,31]
[359458356,1746035438485,-288.5902363,0.00040299,31]
[359458357,1746035438494,-531.14568577,0.00040299,15]
[359458358,1746035438504,-151.0,0.00040299,14]
[359458359,1746035438513,-151.0,0.00040299,14]
[359458360,1746035438525,-151.0,0.00040299,14]
[359458361,1746035438534,-151.0,0.00040299,14]
[359458362,1746035438546,-160.48927,0.00040299,14]
[359458363,1746035438555,-151.0,0.00040299,14]
[359458364,1746035438565,-151.0,0.00040299,14]
[359458365,1746035438575,-151.0,0.00040299,14]
[359458366,1746035438584,-151.0,0.00040299,14]
[359458367,1746035438594,-151.0,0.00040299,14]
[359458368,1746035438603,-197.911077,0.00040299,14]
[359458369,1746035438613,-151.0,0.00040299,14]
[359458370,1746035438623,-151.0,0.00040299,14]
[359458371,1746035438632,-151.0,0.00040299,14]
[359458372,1746035438642,-151.0,0.00040299,14]
[359458373,1746035438662,-151.0,0.00040299,14]
[359458374,1746035438672,-151.0,0.00040299,14]
[359458375,1746035438682,-151.0,0.00040299,14]
[359458376,1746035438692,-151.0,0.00040299,14]
[359458377,1746035438701,-151.0,0.00040299,14]
[359458378,1746035438711,-151.0,0.00040299,14]
[359458379,1746035438722,-151.0,0.00040299,14]
[359458380,1746035438732,-151.0,0.00040299,14]
[359458381,1746035438743,-151.0,0.00040299,14]
[359458382,1746035438753,-1925.88,0.00040299,12]
[359458383,1746035438762,-1925.88,0.00040299,12]
[359458384,1746035438772,-1925.88,0.00040299,12]
[359458385,1746035438782,-1925.88,0.00040299,12]
[359458386,1746035438792,-1925.88,0.00040299,12]
[359458387,1746035438801,-1925.88,0.00040299,12]
[359458388,1746035438812,-1925.88,0.00040299,12]
[359458389,1746035438822,-1925.88,0.00040299,12]
[359458390,1746035438832,-1925.88,0.00040299,12]
[359458391,1746035438842,-1925.88,0.00040299,12]
[359458392,1746035438851,-1925.88,0.00040299,12]
[359458393,1746035438861,-1925.88,0.00040299,12]
[359458394,1746035438871,-1925.88,0.00040299,12]
[359458395,1746035438881,-1925.88,0.00040299,12]
[359458396,1746035438890,-1926.03089606,0.00040299,12]
[359458397,1746035438900,-407.4018619,0.000403,7]
[359458398,1746035438910,-436.5037302,0.000403,31]
[359458399,1746035438920,-212.61327652,0.000403,31]
[359458400,1746035438929,-471.35882483,0.000403,31]
[359458401,1746035438939,-500.0,0.000403,7]
[359458402,1746035438952,-411.4929043,0.000403,31]
[359458403,1746035438961,-500.0,0.000403,31]
[359458404,1746035438971,-500.0,0.000403,31]
[359458405,1746035438980,-157.85934466,0.000403,7]
[359458406,1746035438990,-500.0,0.000403,31]
[359458407,1746035439000,-595.58783604,0.000403,31]
[359458408,1746035439009,-500.0,0.000403,31]
[359458409,1746035439019,-340.04388469,0.000403,31]
[359458410,1746035439030,-2000.0,0.000403,26]
[359458411,1746035439040,-4721.0,0.000403,120]
[359458412,1746035439049,-2000.0,0.000403,26]
[359458413,1746035439059,-33734.59,0.000403,30]
[359458414,1746035439068,-1987.76,0.000403,30]
[359458415,1746035439078,-158.5,0.000403,14]
[359458416,1746035439088,-8093.83,0.000403,30]
[359458417,1746035439098,-153.246383,0.000403,14]
[359458418,1746035439108,-151.0,0.000403,14]
[359458419,1746035439117,-156.296959,0.000403,14]
[359458420,1746035439127,-151.0,0.000403,14]
[359458421,1746035439136,-151.0,0.000403,14]
[359458422,1746035439146,-151.0,0.000403,14]
[359458423,1746035439158,-151.0,0.000403,14]
[359458424,1746035439167,-156.187078,0.000403,14]
[359458425,1746035439178,-152.175069,0.000403,14]
[359458426,1746035439189,-151.0,0.000403,14]
[359458427,1746035439199,-151.0,0.000403,14]
[359458428,1746035439210,-151.0,0.000403,14]
[359458429,1746035439220,-151.0,0.000403,14]
[359458430,1746035439230,-151.0,0.000403,14]
[359458431,1746035439240,-151.0,0.000403,14]
[359458432,1746035439250,-151.0,0.000403,14]
[359458433,1746035439260,-151.0,0.000403,14]
[359458434,1746035439272,-151.0,0.000403,14]
[359458435,1746035439282,-151.0,0.000403,2]
[359458436,1746035439293,-151.0,0.000403,2]
[359458437,1746035439305,-151.0,0.000403,2]
[359458438,1746035439316,-151.0,0.000403,2]
[359458439,1746035439326,-151.0,0.000403,14]
[359458440,1746035439335,-151.0,0.000403,14]
[359458441,1746035439345,-151.0,0.000403,14]
[359458442,1746035439355,-151.0,0.000403,14]
[359458443,1746035439365,-151.0,0.000403,14]
[359458444,1746035439375,-151.0,0.000403,14]
[359458445,1746035439385,-151.0,0.000403,14]
[359458446,1746035439395,-151.0,0.000403,14]
[359458447,1746035439405,-151.0,0.000403,14]
[359458448,1746035439415,-151.0,0.000403,14]
[359458449,1746035439425,-151.0,0.000403,14]
[359458450,1746035439435,-151.000001,0.000403,14]
[359458451,1746035439445,-151.0,0.000403,14]
[359458452,1746035439454,-151.0,0.000403,14]
[359458453,1746035439464,-151.0,0.000403,14]
[359458454,1746035439474,-151.0,0.000403,14]
[359458455,1746035439485,-151.0,0.000403,14]
[359458456,1746035439495,-151.0,0.000403,14]
[359458457,1746035439505,-151.0,0.000403,14]
[359458458,1746035439515,-151.0,0.000403,14]
[359458459,1746035439525,-151.0,0.000403,14]
[359458462,1746035439535,-500.0,0.000403,20]
[359458463,1746035439544,-251.475657,0.000403,20]
[359458464,1746035439554,-151.0,0.000403,14]
[359458465,1746035439564,-151.0,0.000403,14]
[359458466,1746035439573,-151.0,0.000403,14]
[359458467,1746035439583,-151.0,0.000403,14]
[359458468,1746035439593,-179.845406,0.000403,14]
[359458469,1746035439603,-151.0,0.000403,14]
[359458470,1746035439612,-151.0,0.000403,14]
[359458471,1746035439622,-159.753839,0.000403,14]
[359458472,1746035439632,-151.0,0.000403,14]
[359458473,1746035439641,-151.0,0.000403,14]
[359458474,1746035439651,-151.0,0.000403,14]
[359458475,1746035439661,-151.0,0.000403,14]
[359458476,1746035439671,-151.0,0.000403,14]
[359458477,1746035439681,-162.482797,0.000403,14]
[359458478,1746035439691,-383.498969,0.000403,14]
[359458480,1746035439701,-383.498969,0.000403,14]
[359458481,1746035439710,-383.498969,0.000403,14]
[359458482,1746035439721,-383.498969,0.000403,14]
[359458483,1746035439730,-383.498969,0.000403,14]
[359458484,1746035439740,-383.498969,0.000403,14]
[359458485,1746035439750,-383.498969,0.000403,14]
[359458487,1746035439759,-383.498969,0.000403,14]
[359458489,1746035439768,-383.498969,0.000403,14]
[359458491,1746035439778,-383.498969,0.000403,14]
[359458493,1746035439788,-151.0,0.000403,20]
[359458495,1746035439798,-151.0,0.000403,20]
[359458497,1746035439807,-203.04410529,0.000403,20]
[359458499,1746035439817,-151.0,0.000403,20]
[359458501,1746035439826,-151.0,0.000403,20]
[359458503,1746035439835,-151.0,0.000403,2]
[359458505,1746035439845,-151.0,0.000403,20]
[359458507,1746035439854,-500.0,0.000403,20]
[359458509,1746035439864,-185.329572,0.000403,14]
[359458511,1746035439873,-185.329572,0.000403,14]
[359458512,1746035439883,-185.329572,0.000403,14]
[359458513,1746035439893,-185.329572,0.000403,14]
[359458514,1746035439904,-185.329572,0.000403,14]
[359458515,1746035439913,-185.329572,0.000403,14]
[359458516,1746035439922,-185.329572,0.000403,14]
[359458517,1746035439935,-185.329572,0.000403,14]
[359458518,1746035439948,-185.329572,0.000403,14]
[359458519,1746035439958,-185.329572,0.000403,14]
[359458521,1746035439969,-206.0,0.000403,30]
[359458522,1746035439981,-12196.08590047,0.000403,7]
[359458523,1746035439990,-500.0,0.000403,5]
[359458524,1746035440000,-160.0,0.000403,3]
[359458525,1746035440010,-31107.47297391,0.000403,2]
[359458526,1746035440057,-9019.32170174,0.000403,2]
[359458528,1746035440069,-185867.37967196,0.000403,2]
[359458529,1746035440079,-32408.27669977,0.000403,3]
[359458530,1746035440090,-6298009.58441157,0.00040301,20]
[359458531,1746035440101,-5656.11637355,0.00040301,20]
[359458532,1746035440275,-756.80546802,0.00040301,20]
[359458533,1746035442116,151.0,0.00027397,3]
[359458679,1746035552914,251.11368052,0.00035287,2]
[359458683,1746036338332,-537.481043,0.00027397,2]
[359458684,1746036338353,-179.0,0.00027397,3]
[359458685,1746036338375,-923.1434322,0.00032826,120]
[359458686,1746036338397,-70.9630028,0.00032886,2]
[359458688,1746036436130,-507.5175334,0.00032886,2]
[359458689,1746036436155,-400.0,0.00032977,2]
[359458690,1746036436184,-6152.2177063,0.00032978,2]
[359458691,1746036436207,-537.481043,0.00033165,2]
[359458692,1746036436230,-447.0,0.00034,2]
[359458693,1746036436258,-218.0,0.00034,2]
[359458694,1746036436284,-159.13584982,0.00034173,2]
[359458695,1746036436314,-1600.0,0.00034272,3]
[359458696,1746036436486,-348.35290049,0.00034273,60]
[359458697,1746036453205,-1051.9709222,0.00033736,2]
[359458698,1746036453229,-1296.716953,0.00033827,2]
[359458699,1746036453253,-743.43270313,0.00034273,60]
[359458701,1746036546135,-508.21439638,0.00034273,60]
[359458705,1746036556107,-400.0,0.0003482,3]
[359458706,1746036556128,-1600.0,0.00034821,60]
[359458707,1746036556150,-312.0,0.00035259,3]
[359458708,1746036556170,-400.0,0.00035259,3]
[359458709,1746036556191,-400.0,0.00035368,2]
[359458710,1746036556215,-1600.0,0.00035369,60]
[359458711,1746036556236,-24900.0,0.00035501,2]
[359458712,1746036556257,-155.0,0.00035616,2]
[359458713,1746036556278,-487.48585196,0.00035816,2]
[359458714,1746036556300,-2043.5282936,0.00035917,2]
[359458715,1746036556322,-1508.66159025,0.00035917,60]
[359458716,1746036557103,-91.33840975,0.00035917,60]
[359458718,1746036600248,1200.0,0.00035369,60]
[359458719,1746036601802,1200.0,0.00035917,60]
[359458720,1746036613605,1349.89322206,0.00033716,2]
[359458738,1746036631987,-300.71460877,0.00036277,2]
[359458740,1746036631997,-171.740447,0.00036287,2]
[359458742,1746036632007,-487.4858519,0.00036443,2]
[359458744,1746036632017,-1200.0,0.00036465,60]
[359458746,1746036632027,-510.240638,0.0003648,2]
[359458748,1746036632036,-437.2574115,0.00036526,2]
[359458749,1746036632049,-248.87162903,0.00036712,3]
[359458750,1746036632059,-1600.0,0.00036921,3]
[359458752,1746036632069,-200.0,0.00037012,3]
[359458753,1746036632079,-1200.0,0.00037013,60]
[359458754,1746036632088,-487.4858519,0.00037071,2]
[359458755,1746036632098,-400.0,0.00037241,2]
[359458756,1746036632108,-200.0,0.00037241,3]
[359458757,1746036632118,-1985.5387592,0.00037242,2]
[359458759,1746036632128,-500.0,0.00037258,7]
[359458760,1746036632138,-642.872076,0.00037492,2]
[359458761,1746036632147,-1200.0,0.00037561,60]
[359458763,1746036632157,-487.4858519,0.00037698,2]
[359458765,1746036632167,-1200.0,0.00038109,60]
[359458766,1746036632176,-154.1030122,0.00038284,4]
[359458768,1746036632186,-487.4858519,0.00038326,2]
[359458770,1746036632196,-400.0,0.00038356,12]
[359458773,1746036632206,-400.0,0.00038356,12]
[359458775,1746036632217,-400.0,0.00038356,12]
[359458777,1746036632226,-400.0,0.00038356,12]
[359458779,1746036632236,-400.0,0.00038356,2]
[359458780,1746036632246,-102.28298208,0.00038356,2]
[359458781,1746036632262,-297.71701792,0.00038356,2]
[359458782,1746036632272,-400.0,0.00038356,2]
[359458783,1746036632282,-400.0,0.00038356,2]
[359458784,1746036632291,-202.58060309,0.00038356,2]
[359458785,1746036632304,-400.0,0.00038356,12]
[359458786,1746036632315,-400.0,0.00038356,12]
[359458787,1746036632325,-400.0,0.00038356,12]
[359458788,1746036632335,-400.0,0.00038356,12]
[359458789,1746036632344,-400.0,0.00038356,12]
[359458790,1746036632355,-400.0,0.00038356,12]
[359458791,1746036632364,-400.0,0.00038356,12]
[359458792,1746036632374,-400.0,0.00038356,12]
[359458793,1746036632384,-400.0,0.00038356,12]
[359458794,1746036632395,-400.0,0.00038356,12]
[359458795,1746036632405,-400.0,0.00038356,12]
[359458796,1746036632414,-400.0,0.00038356,12]
[359458797,1746036632423,-400.0,0.00038356,12]
[359458798,1746036632432,-400.0,0.00038356,12]
[359458799,1746036632441,-209.84869464,0.00038356,12]
[359458800,1746036632460,-500.0,0.00038356,12]
[359458801,1746036632472,-500.0,0.00038356,12]
[359458802,1746036632482,-205.86014315,0.00038356,12]
[359458803,1746036632492,-164.34061038,0.00038356,2]
[359458804,1746036632502,-566.81,0.000384,2]
[359458805,1746036632512,-500.0,0.000384,5]
[359458806,1746036632522,-1349.89322206,0.00038716,2]
[359458807,1746036632532,-160.0,0.00038843,2]
[359458808,1746036632542,-160.0,0.00038843,2]
[359458809,1746036632552,-537.481043,0.00038933,2]
[359458810,1746036632562,-649.903,0.00038943,2]
[359458811,1746036632573,-750.388,0.00038943,2]
[359458812,1746036632584,-487.4858519,0.00038953,2]